bitfinex-derivatives/quotes_ETHF0:USTF0_20210406
["timestamp","ask_amount","ask_price","bid_price","bid_amount"]
[1617706047126,15.90695,2116.2,2116.0,5.81]
[1617706048027,15.90695,2116.2,2115.4,5.88]
[1617706048230,2.90695,2115.5,2115.4,5.88]
[1617706048429,2.90695,2115.5,2115.3,32.0]
[1617706048628,2.90695,2115.5,2115.4,5.85]
[1617706051930,2.90695,2115.5,2115.4,6.7912]
[1617706052136,2.90695,2115.5,2115.4,5.85]
[1617706053436,13.0,2116.2,2115.4,5.85]
[1617706054331,13.0,2116.2,2115.9,2.90695]
[1617706054832,13.9553,2116.2,2116.0,5.77]
[1617706055231,13.0,2116.2,2116.0,5.77]
[1617706055646,13.0,2116.2,2116.0,8.1048]
[1617706057074,13.0,2116.2,2116.0,5.77]
[1617706057336,13.0,2116.2,2116.0,6.722]
[1617706057533,13.0,2116.2,2116.0,5.77]
[1617706058433,2.90695,2116.1,2116.0,6.7248]
[1617706060235,13.0,2116.2,2116.0,7.9288]
[1617706060635,13.0,2116.2,2116.0,9.9288]
[1617706060835,13.0,2116.2,2116.0,39.9288]
[1617706061337,13.0,2116.2,2116.0,40.8765]
[1617706061838,13.9433,2116.2,2116.0,40.8765]
[1617706062137,13.0,2116.2,2116.0,40.8765]
[1617706062838,13.0,2116.2,2116.0,39.9288]
[1617706064141,8.5343,2116.2,2116.0,39.9288]
[1617706066343,8.5343,2116.2,2116.0,40.8753]
[1617706066540,8.5343,2116.2,2116.0,103.6502]
[1617706069545,8.5343,2116.2,2116.0,40.8753]
[1617706069746,8.34,2116.2,2116.0,40.8753]
[1617706069945,8.34,2116.2,2116.0,108.787]
[1617706070255,8.34,2116.2,2116.0,40.8753]
[1617706070458,7.7068,2116.2,2116.0,40.8753]
[1617706070659,7.2379,2116.2,2116.0,40.8753]
[1617706071063,1.8352,2116.2,2116.0,40.8753]
[1617706071263,0.9575,2119.0,2116.0,40.8753]
[1617706071463,73.9933,2118.3,2116.0,40.8753]
[1617706072050,73.9933,2118.3,2116.3,32.0]
[1617706072349,73.9933,2118.3,2116.3,37.72]
[1617706072752,73.9933,2118.3,2117.5,5.91]
[1617706073152,2.3292,2118.6,2116.5,30.0]
[1617706073351,2.3292,2118.6,2116.6,2.0]
[1617706073653,2.3292,2118.6,2117.2,62.3468]
[1617706073952,2.3292,2118.6,2117.3,5.87]
[1617706074453,2.90695,2117.4,2117.3,8.77695]
[1617706076160,2.90695,2117.4,2117.3,5.87]
[1617706076553,2.90695,2117.4,2117.3,0.9545]
[1617706076954,2.90695,2117.4,2117.3,5.74]
[1617706077354,2.90695,2117.4,2116.7,5.72]
[1617706077668,2.90695,2117.4,2117.3,5.89]
[1617706077855,2.90695,2117.4,2117.3,6.8426]
[1617706078163,2.90695,2117.4,2117.3,0.9526]
[1617706078368,2.90695,2117.4,2117.3,6.7826]
[1617706080557,32.90695,2117.4,2117.3,6.7826]
[1617706081657,34.90695,2117.4,2117.3,6.7826]
[1617706082057,34.90695,2117.4,2117.3,6.2314]
[1617706082459,34.90695,2117.4,2117.3,5.83]
[1617706082862,34.90695,2117.4,2116.0,5.72]
[1617706083068,34.90695,2117.4,2117.3,5.78]
[1617706083464,34.90695,2117.4,2115.2,2.90695]
[1617706083667,34.90695,2117.4,2115.8,5.87]
[1617706083860,34.90695,2117.4,2117.3,5.67]
[1617706084160,34.90695,2117.4,2115.6,5.79]
[1617706084461,34.90695,2117.4,2117.3,5.68]
[1617706084661,34.90695,2117.4,2115.3,5.8]
[1617706084962,34.90695,2117.4,2117.3,5.9]
[1617706085361,34.90695,2117.4,2115.4,5.94]
[1617706085860,34.90695,2117.4,2115.2,2.90695]
[1617706086060,34.90695,2117.4,2115.1,2.0]
[1617706086061,79.2618,2116.8,2115.3,5.9]
[1617706086261,81.2618,2116.8,2115.3,5.9]
[1617706086561,2.90695,2115.4,2115.3,0.9493]
[1617706086761,5.84745,2115.4,2115.3,0.9493]
[1617706086964,5.84745,2115.4,2115.3,5.68]
[1617706087461,5.84745,2115.4,2115.2,5.89]
[1617706087661,5.84745,2115.4,2115.3,5.71]
[1617706087964,82.2029,2116.8,2115.3,0.9321]
[1617706088364,82.2029,2116.8,2115.3,6.7021]
[1617706088562,2.90695,2115.6,2115.4,2.90695]
[1617706088762,3.85005,2115.6,2115.4,2.90695]
[1617706089061,2.90695,2115.6,2115.5,5.92]
[1617706090763,2.90695,2115.6,2115.5,6.8676]
[1617706090963,2.90695,2115.6,2115.5,0.9476]
[1617706091163,2.90695,2115.6,2115.5,6.7776]
[1617706091364,2.90695,2115.6,2115.5,5.83]
[1617706091764,2.90695,2115.6,2115.3,5.69]
[1617706091964,2.90695,2115.6,2115.5,5.95]
[1617706092464,2.90695,2115.6,2115.2,30.0]
[1617706092465,2.90695,2115.6,2115.3,6.845]
[1617706092768,2.90695,2115.6,2115.5,5.78]
[1617706092969,2.90695,2115.6,2115.4,5.67]
[1617706093364,2.90695,2115.6,2115.5,5.74]
[1617706093585,2.90695,2115.6,2115.4,5.8]
[1617706093972,2.90695,2115.6,2115.5,5.74]
[1617706094166,2.90695,2115.6,2115.3,0.935]
[1617706094367,2.90695,2115.6,2115.4,5.69]
[1617706094567,2.90695,2115.6,2115.4,8.59695]
[1617706095467,0.9594,2117.1,2115.4,41.31435]
[1617706095837,70.3542,2117.6,2115.4,41.31435]
[1617706096034,69.4196,2117.6,2115.4,41.31435]
[1617706096210,0.9551,2118.1,2115.4,56.81415]
[1617706096693,2.9551,2118.1,2116.6,2.90695]
[1617706096970,30.0,2118.2,2116.6,5.80385]
[1617706097170,30.0,2118.2,2116.7,5.77]
[1617706098472,2.0,2118.5,2116.7,5.77]
[1617706098673,2.0,2118.5,2117.2,2.90695]
[1617706098873,2.0,2118.5,2117.2,5.00615]
[1617706099074,2.0,2118.5,2117.3,5.66]
[1617706099475,1.8864,2119.0,2117.8,74.414]
[1617706099674,0.01384989,2119.3,2117.9,5.76]
[1617706099877,0.01384943,2119.4,2117.9,5.76]
[1617706100278,0.01384702,2119.5,2117.9,5.76]
[1617706100680,2.0,2119.6,2118.0,2.90695]
[1617706100879,2.9322,2119.6,2118.0,2.90695]
[1617706101079,2.9322,2119.6,2118.1,5.76]
[1617706101282,2.0,2119.6,2118.1,5.76]
[1617706102587,32.0,2119.6,2118.1,5.76]
[1617706102787,3.85275,2118.2,2118.1,5.76]
[1617706103286,3.85275,2118.2,2118.1,65.5676]
[1617706104791,2.90695,2118.2,2118.1,65.5676]
[1617706106288,2.90695,2118.2,2118.1,5.76]
[1617706106688,2.90695,2118.2,2117.9,5.77]
[1617706106889,2.90695,2118.2,2118.1,5.87]
[1617706107289,2.90695,2118.2,2118.0,62.5419]
[1617706107490,2.90695,2118.2,2118.1,5.79]
[1617706110198,2.90695,2118.2,2118.1,79.262]
[1617706110399,2.90695,2118.2,2118.1,5.79]
[1617706110597,2.90695,2118.2,2117.8,5.15535]
[1617706110598,2.90695,2118.2,2117.9,6.7656]
[1617706110798,2.90695,2118.2,2118.1,8.72695]
[1617706111097,2.90695,2118.2,2118.1,2.90695]
[1617706111397,2.90695,2118.2,2118.1,8.79695]
[1617706113700,2.90695,2118.2,2118.1,5.89]
[1617706114101,2.90695,2118.2,2117.9,5.81]
[1617706114301,2.90695,2118.2,2118.1,5.81]
[1617706114703,2.90695,2118.2,2117.9,8.83695]
[1617706114902,2.90695,2118.2,2118.1,5.91]
[1617706115306,2.90695,2118.2,2118.0,5.91]
[1617706115506,2.90695,2118.2,2118.1,5.87]
[1617706115906,2.90695,2118.2,2118.1,2.9833]
[1617706116106,2.90695,2118.2,2118.1,8.8133]
[1617706118208,2.90695,2118.2,2118.1,5.83]
[1617706118719,2.90695,2118.2,2118.0,59.1412]
[1617706119220,2.90695,2118.2,2118.1,5.8]
[1617706122017,2.90695,2118.2,2118.0,5.75]
[1617706128024,2.90695,2118.2,2118.0,6.6963]
[1617706128233,2.90695,2118.2,2118.0,5.75]
[1617706133538,2.90695,2118.2,2118.0,8.6532]
[1617706135438,2.90695,2118.2,2118.0,5.75]
[1617706137547,13.0,2118.1,2118.0,5.75]
[1617706144057,15.8428,2118.1,2118.0,5.75]
[1617706144456,15.8428,2118.1,2117.6,5.91]
[1617706144754,15.8428,2118.1,2117.5,5.83]
[1617706144755,15.8428,2118.1,2118.0,5.2]
[1617706145060,15.8428,2118.1,2117.3,13.7067]
[1617706145261,15.8428,2118.1,2118.0,5.76]
[1617706145554,15.8428,2118.1,2117.4,5.89]
[1617706145761,15.8428,2118.1,2117.6,5.8]
[1617706146056,15.8428,2118.1,2118.0,5.67]
[1617706146255,15.8428,2118.1,2117.4,5.8]
[1617706146455,15.8428,2118.1,2117.9,3.16]
[1617706146654,15.8428,2118.1,2117.7,5.82]
[1617706146955,15.8428,2118.1,2118.0,5.76]
[1617706147355,15.8428,2118.1,2117.9,5.67]
[1617706147554,15.8428,2118.1,2118.0,5.9]
[1617706147854,15.8428,2118.1,2117.8,76.2347]
[1617706148058,15.8428,2118.1,2118.0,5.77]
[1617706148279,13.0,2118.1,2118.0,5.77]
[1617706148477,13.0,2118.1,2117.6,32.90695]
[1617706148673,13.0,2118.1,2118.0,5.85]
[1617706149061,13.0,2118.1,2118.0,2.90695]
[1617706149274,13.0,2118.1,2118.0,8.80695]
[1617706149686,13.0,2118.1,2118.0,2.90695]
[1617706149958,13.0,2118.1,2118.0,8.59695]
[1617706151162,15.90695,2118.1,2118.0,8.59695]
[1617706151868,15.90695,2118.1,2118.0,5.69]
[1617706152368,15.90695,2118.1,2117.9,5.93]
[1617706152765,15.90695,2118.1,2118.0,5.67]
[1617706152964,15.90695,2118.1,2117.5,3.49]
[1617706153167,15.90695,2118.1,2118.0,2.90695]
[1617706153764,15.90695,2118.1,2118.0,8.76695]
[1617706158071,15.90695,2118.1,2118.0,10.81075]
[1617706158971,15.90695,2118.1,2118.0,11.75495]
[1617706159172,15.90695,2118.1,2118.0,41.75495]
[1617706159490,12.0067,2118.1,2118.0,43.75495]
[1617706159674,9.2376,2118.1,2118.0,43.75495]
[1617706160874,9.2376,2118.1,2118.0,42.81075]
[1617706161587,9.178,2118.1,2118.0,42.81075]
[1617706161879,9.178,2118.1,2118.0,43.74245]
[1617706163802,7.3512,2118.1,2118.0,43.74245]
[1617706163982,5.9278,2118.1,2118.0,43.74245]
[1617706164580,5.9278,2118.1,2118.0,42.81075]
[1617706165681,5.9278,2118.1,2118.0,43.75335]
[1617706170388,5.9278,2118.1,2118.0,42.81075]
[1617706182804,4.2318,2118.1,2118.0,42.81075]
[1617706188519,3.288,2118.1,2118.0,42.81075]
[1617706192718,1.448,2118.1,2118.0,42.81075]
[1617706195022,1.261,2118.1,2118.0,42.81075]
[1617706196428,2.90695,2118.7,2118.0,42.81075]
[1617706197731,2.90695,2118.7,2118.6,2.90695]
[1617706198143,2.90695,2118.7,2118.6,8.61695]
[1617706199032,2.90695,2118.7,2118.6,9.55435]
[1617706199240,2.90695,2118.7,2118.6,8.61695]
[1617706200134,2.90695,2118.7,2118.6,9.55385]
[1617706200333,2.90695,2118.7,2118.6,8.61695]
[1617706200636,70.4645,2119.6,2118.6,5.71]
[1617706200834,70.4645,2119.6,2118.6,7.903]
[1617706201034,70.4645,2119.6,2118.6,2.193]
[1617706201239,70.4645,2119.6,2118.7,5.78]
[1617706201837,70.4645,2119.6,2118.9,2.90695]
[1617706202145,70.4645,2119.6,2119.0,5.9]
[1617706203940,2.90695,2119.1,2119.0,5.9]
[1617706205845,4.80545,2119.1,2118.4,5.91]
[1617706206041,4.80545,2119.1,2119.0,5.83]
[1617706206445,4.80545,2119.1,2118.4,5.82]
[1617706206747,4.80545,2119.1,2119.0,5.76]
[1617706206943,4.80545,2119.1,2118.4,5.77]
[1617706207143,4.80545,2119.1,2119.0,5.84]
[1617706207543,4.80545,2119.1,2118.4,5.81]
[1617706208044,2.0,2119.9,2119.0,5.7]
[1617706208247,2.0,2119.9,2118.5,0.9575]
[1617706208446,2.0,2119.9,2118.6,5.78]
[1617706209146,2.0,2119.9,2118.4,5.66]
[1617706209349,2.0,2119.9,2118.7,5.8]
[1617706209680,2.0,2119.9,2118.4,5.89]
[1617706209881,2.90695,2118.5,2118.4,5.89]
[1617706210078,2.90695,2118.5,2118.3,30.0]
[1617706210246,2.90695,2118.5,2118.4,5.73]
[1617706211952,2.24325,2118.5,2118.4,5.73]
[1617706213451,2.24325,2118.5,2118.3,5.88]
[1617706213867,2.24325,2118.5,2118.4,5.88]
[1617706214152,2.0,2118.4,2118.3,5.73]
[1617706214456,2.0,2118.4,2117.3,0.28]
[1617706214752,2.0,2118.4,2117.2,0.1]
[1617706214753,2.0,2118.4,2117.9,5.8]
[1617706214971,2.0,2118.4,2117.4,0.18]
[1617706215151,2.0,2118.4,2116.6,43.5967]
[1617706215353,2.0,2118.4,2118.0,5.85]
[1617706215552,2.0,2118.4,2117.5,3.16]
[1617706215754,2.0,2118.4,2118.1,5.89]
[1617706216056,2.90695,2118.2,2118.0,5.8]
[1617706216257,2.90695,2118.2,2117.6,3.76]
[1617706216454,2.90695,2118.2,2117.3,5.69]
[1617706216655,2.90695,2118.2,2118.1,5.73]
[1617706216985,2.90695,2118.2,2117.7,3.99]
[1617706216986,2.90695,2118.2,2117.9,65.9862]
[1617706217257,2.90695,2118.2,2117.9,67.8014]
[1617706217464,2.90695,2118.2,2118.0,5.83]
[1617706218054,2.90695,2118.2,2118.1,2.90695]
[1617706218455,2.90695,2118.2,2118.1,8.66695]
[1617706222665,2.90695,2118.2,2118.1,9.61115]
[1617706222865,2.90695,2118.2,2118.1,8.66695]
[1617706225575,2.90695,2118.2,2118.1,5.76]
[1617706226581,2.90695,2118.2,2117.8,5.83]
[1617706226980,2.90695,2118.2,2118.1,5.76]
[1617706227179,2.90695,2118.2,2117.9,5.89]
[1617706227580,2.90695,2118.2,2118.1,5.74]
[1617706227777,2.90695,2118.2,2118.0,5.78]
[1617706228177,2.90695,2118.2,2118.1,5.27]
[1617706228479,2.90695,2118.2,2117.3,2.90695]
[1617706228683,2.90695,2118.2,2118.1,5.89]
[1617706229082,2.90695,2118.2,2117.3,2.90695]
[1617706229281,2.90695,2118.2,2118.1,5.78]
[1617706229682,2.90695,2118.2,2117.5,2.5142]
[1617706229883,2.90695,2118.2,2118.1,5.8]
[1617706230181,58.6422,2118.3,2118.1,5.8]
[1617706230383,15.0,2118.5,2117.8,3.13]
[1617706230784,15.0,2118.5,2118.2,5.93]
[1617706230987,15.0,2118.5,2117.8,5.9]
[1617706231385,15.0,2118.5,2118.3,5.66]
[1617706231585,15.0,2118.5,2117.8,5.83]
[1617706231987,2.90695,2117.9,2117.8,5.83]
[1617706235389,2.90695,2117.9,2117.1,30.0]
[1617706235390,2.90695,2117.9,2117.2,68.516]
[1617706235592,2.90695,2117.9,2117.8,5.67]
[1617706235990,2.90695,2117.4,2117.3,8.71695]
[1617706236190,2.90695,2117.4,2117.3,2.90695]
[1617706236590,2.90695,2117.4,2117.3,8.65695]
[1617706238193,60.0842,2118.1,2117.3,9.59065]
[1617706238393,60.0842,2118.1,2117.3,8.65695]
[1617706239194,60.0842,2118.1,2117.3,5.75]
[1617706239596,60.0842,2118.1,2116.9,5.69]
[1617706240097,60.0842,2118.1,2117.4,5.93]
[1617706240295,60.0842,2118.1,2117.3,69.5086]
[1617706240496,60.0842,2118.1,2117.4,5.88]
[1617706241106,15.0,2118.5,2117.4,5.88]
[1617706241107,15.0,2118.5,2117.4,8.1577]
[1617706241108,13.0,2118.5,2117.4,8.1577]
[1617706241303,13.0,2118.5,2117.4,2.2777]
[1617706241796,13.0,2118.5,2117.5,5.87]
[1617706242102,2.90695,2117.6,2117.5,5.87]
[1617706242300,13.0,2118.5,2117.5,5.87]
[1617706242500,13.0,2118.5,2117.4,2.90695]
[1617706242698,13.0,2118.5,2117.5,5.95]
[1617706243198,15.0,2118.5,2117.5,5.95]
[1617706243397,15.0,2118.5,2117.3,5.73]
[1617706243598,65.116,2118.4,2117.4,64.1426]
[1617706243800,65.116,2118.4,2117.6,5.81]
[1617706244097,2.90695,2117.6,2117.5,5.7]
[1617706244305,2.90695,2117.6,2117.4,64.1426]
[1617706244799,65.116,2118.4,2117.5,5.74]
[1617706246206,2.90695,2117.6,2117.5,5.74]
[1617706246907,5.88545,2117.6,2117.2,5.76]
[1617706247307,5.88545,2117.6,2117.5,5.91]
[1617706247508,5.88545,2117.6,2117.2,5.79]
[1617706247908,5.88545,2117.6,2117.1,2.90695]
[1617706247909,5.88545,2117.6,2117.5,5.71]
[1617706248108,5.88545,2117.6,2117.2,5.87]
[1617706248611,5.88545,2117.6,2117.5,5.78]
[1617706248908,5.88545,2117.6,2117.2,5.69]
[1617706249111,5.88545,2117.6,2117.5,5.92]
[1617706249609,5.88545,2117.6,2117.2,5.78]
[1617706249810,5.88545,2117.6,2117.5,5.8]
[1617706250009,5.88545,2117.6,2117.2,5.9]
[1617706250211,2.90695,2117.3,2117.2,5.9]
[1617706250410,2.90695,2117.3,2116.7,13.7065]
[1617706250616,2.90695,2117.3,2117.2,5.9]
[1617706250911,2.90695,2117.3,2116.7,13.7065]
[1617706251315,2.90695,2117.3,2117.2,5.87]
[1617706251511,2.90695,2117.3,2116.7,13.7065]
[1617706251812,2.90695,2117.3,2116.9,5.72]
[1617706252012,2.90695,2117.3,2117.2,5.83]
[1617706252312,2.90695,2117.3,2116.7,13.7065]
[1617706252512,2.90695,2117.3,2117.2,5.92]
[1617706252912,2.90695,2117.3,2116.8,5.83]
[1617706253112,2.90695,2117.3,2116.7,13.7065]
[1617706253312,2.90695,2117.3,2117.2,5.84]
[1617706253514,2.90695,2117.3,2116.8,5.73]
[1617706253712,2.90695,2117.3,2117.2,5.86]
[1617706254212,2.90695,2117.3,2116.8,5.91]
[1617706254413,2.90695,2117.3,2117.2,5.88]
[1617706254814,2.90695,2117.3,2116.8,5.92]
[1617706255014,2.90695,2117.3,2117.2,5.94]
[1617706255421,2.90695,2117.3,2116.8,5.91]
[1617706255617,2.90695,2117.3,2117.2,5.77]
[1617706255817,32.90695,2117.3,2117.2,5.77]
[1617706256020,32.90695,2117.3,2116.8,5.66]
[1617706256218,2.90695,2116.9,2116.7,13.7065]
[1617706256619,2.90695,2116.9,2116.8,5.76]
[1617706257517,2.90695,2116.9,2116.3,2.90695]
[1617706257518,2.90695,2116.9,2116.4,5.79]
[1617706257719,2.90695,2116.9,2116.8,5.95]
[1617706258129,2.90695,2116.9,2116.4,5.76]
[1617706258319,2.90695,2116.9,2116.8,5.83]
[1617706258519,32.0,2117.5,2116.8,5.83]
[1617706258729,32.0,2117.5,2116.4,5.93]
[1617706258925,65.2138,2117.0,2116.8,5.77]
[1617706259324,65.2138,2117.0,2116.5,5.77]
[1617706259623,65.2138,2117.0,2116.9,5.28]
[1617706259820,65.2138,2117.0,2116.3,2.90695]
[1617706260020,65.2138,2117.0,2116.6,5.7]
[1617706260222,65.2138,2117.0,2116.9,5.74]
[1617706260437,65.2138,2117.0,2116.3,2.90695]
[1617706260622,65.2138,2117.0,2116.7,5.89]
[1617706260921,65.2138,2117.0,2116.9,5.91]
[1617706261121,68.12075,2117.0,2116.8,5.75]
[1617706261323,68.12075,2117.0,2116.9,5.79]
[1617706261725,68.12075,2117.0,2116.1,2.6136]
[1617706261923,68.12075,2117.0,2116.9,5.74]
[1617706262324,68.12075,2117.0,2116.6,5.93]
[1617706262524,68.12075,2117.0,2116.9,5.83]
[1617706262925,68.12075,2117.0,2116.7,5.7]
[1617706263126,65.2138,2117.0,2116.7,5.7]
[1617706263326,65.2138,2117.0,2116.4,68.54245]
[1617706263626,65.2138,2117.0,2116.5,2.76]
[1617706265128,2.90695,2116.6,2116.5,2.76]
[1617706266429,2.90695,2116.6,2116.0,5.71]
[1617706266637,2.90695,2116.6,2116.0,77.1704]
[1617706266832,2.90695,2116.6,2116.5,5.82]
[1617706267032,2.90695,2116.6,2116.1,5.73]
[1617706267236,2.90695,2116.6,2116.5,5.69]
[1617706267533,2.90695,2116.6,2116.0,71.4604]
[1617706267733,2.90695,2116.6,2116.1,5.68]
[1617706267934,2.90695,2116.6,2116.5,5.77]
[1617706268333,2.90695,2116.6,2116.1,5.76]
[1617706268535,2.90695,2116.6,2116.5,5.7]
[1617706268935,2.90695,2116.6,2116.1,5.7]
[1617706269156,2.90695,2116.2,2116.1,2.90695]
[1617706269542,2.90695,2116.2,2116.1,8.71695]
[1617706270738,2.90695,2116.2,2116.1,67.01665]
[1617706273848,2.90695,2116.2,2116.1,8.71695]
[1617706274259,2.90695,2116.2,2116.1,10.65175]
[1617706277750,2.90695,2116.2,2116.1,8.71695]
[1617706279050,2.90695,2116.2,2116.1,9.64915]
[1617706280352,2.90695,2116.2,2116.1,8.71695]
[1617706281954,2.90695,2116.2,2116.1,5.81]
[1617706282154,2.90695,2116.2,2116.1,63.1717]
[1617706282354,2.90695,2116.2,2116.1,57.3617]
[1617706282555,2.90695,2116.2,2116.1,63.2417]
[1617706282954,2.90695,2116.2,2116.1,64.1857]
[1617706283156,2.90695,2116.2,2116.1,63.2417]
[1617706283557,2.90695,2116.2,2116.1,65.1743]
[1617706284170,2.90695,2116.2,2116.1,66.1254]
[1617706285466,2.90695,2116.2,2116.1,8.7637]
[1617706285757,2.90695,2116.2,2116.1,5.88]
[1617706286261,2.90695,2116.2,2116.0,5.84]
[1617706286657,2.90695,2116.2,2116.1,5.88]
[1617706286960,2.90695,2116.2,2116.0,5.69]
[1617706287159,2.90695,2116.2,2116.1,5.87]
[1617706287560,2.90695,2116.2,2115.9,3.85745]
[1617706287561,2.90695,2116.2,2116.0,5.87]
[1617706287861,2.90695,2116.2,2116.1,5.66]
[1617706288061,2.90695,2116.2,2116.0,5.75]
[1617706288464,2.90695,2116.2,2116.1,5.7]
[1617706288665,2.90695,2116.2,2116.1,0.9401]
[1617706289064,2.90695,2116.2,2116.1,5.85]
[1617706289465,2.90695,2116.2,2116.0,5.79]
[1617706289866,2.90695,2116.2,2116.1,5.93]
[1617706290064,2.90695,2116.2,2116.0,5.91]
[1617706290566,2.0,2117.5,2116.1,5.78]
[1617706290869,2.0,2118.0,2116.1,30.0]
[1617706291164,2.0,2118.0,2116.3,30.0]
[1617706291364,2.0,2118.0,2117.3,5.66375]
[1617706291683,30.0,2119.1,2117.4,3.07]
[1617706292065,2.0,2118.7,2117.4,3.07]
[1617706292370,0.9548,2119.6,2117.4,3.07]
[1617706292371,32.0,2119.0,2117.4,3.07]
[1617706292575,32.0,2119.0,2117.4,4.0162]
[1617706292770,104.0371,2119.0,2117.9,54.5929]
[1617706292967,104.0371,2119.0,2117.9,57.1285]
[1617706293171,104.0371,2119.0,2118.0,5.79]
[1617706294075,104.0371,2119.0,2118.0,6.7432]
[1617706295073,104.0371,2119.0,2118.0,5.79]
[1617706295270,2.90695,2118.1,2118.0,5.79]
[1617706296171,2.90695,2118.1,2118.0,0.9381]
[1617706296596,2.90695,2118.1,2118.0,6.7481]
[1617706296970,2.90695,2118.1,2118.0,5.81]
[1617706297482,2.90695,2118.1,2117.5,5.9]
[1617706297695,2.90695,2118.1,2118.0,5.84]
[1617706297899,2.90695,2118.1,2117.4,66.1425]
[1617706298071,2.90695,2118.1,2118.0,0.949]
[1617706298371,2.90695,2118.1,2118.0,6.749]
[1617706300579,2.90695,2118.1,2118.0,5.8]
[1617706300776,2.90695,2118.1,2117.7,5.76]
[1617706301276,2.90695,2118.1,2118.0,5.9]
[1617706301475,2.90695,2118.1,2117.7,5.81]
[1617706301978,2.90695,2118.1,2117.6,65.60825]
[1617706301979,2.90695,2118.1,2118.0,5.67]
[1617706302177,2.90695,2118.1,2117.7,5.78]
[1617706302377,2.90695,2118.1,2118.0,5.74]
[1617706302577,2.90695,2118.1,2118.0,6.6781]
[1617706302877,2.90695,2118.1,2118.0,0.9381]
[1617706303077,2.90695,2118.1,2118.0,5.77]
[1617706303477,2.90695,2118.1,2117.7,5.89]
[1617706303677,2.90695,2118.1,2118.0,5.75]
[1617706303977,3.85325,2118.1,2117.7,7.9178]
[1617706304177,2.90695,2118.1,2117.8,5.77]
[1617706304379,2.90695,2118.1,2118.0,5.95]
[1617706304580,2.90695,2118.1,2117.7,1.9778]
[1617706304779,2.90695,2118.1,2117.8,5.91]
[1617706304978,2.90695,2118.1,2118.0,5.73]
[1617706305179,2.90695,2118.1,2117.7,1.9778]
[1617706305478,2.90695,2118.1,2118.0,5.74]
[1617706305880,2.90695,2118.1,2117.9,5.88]
[1617706306079,2.90695,2118.1,2118.0,5.83]
[1617706306394,2.90695,2118.1,2117.9,5.83]
[1617706306583,13.0,2118.5,2117.9,5.83]
[1617706306885,13.0,2118.5,2118.0,5.76]
[1617706307198,13.0,2118.5,2117.9,5.9]
[1617706307485,13.0,2118.5,2118.1,5.85]
[1617706307685,13.0,2118.5,2118.0,8.56695]
[1617706308083,13.0,2118.5,2118.1,5.92]
[1617706309484,2.90695,2118.2,2118.1,5.92]
[1617706309784,3.86505,2118.2,2118.1,5.92]
[1617706310185,2.90695,2118.2,2118.1,5.92]
[1617706310987,2.90695,2118.2,2117.9,5.84]
[1617706311189,2.90695,2118.2,2118.1,5.85]
[1617706311488,2.90695,2118.2,2118.0,5.85]
[1617706311689,3.84365,2118.2,2118.0,5.85]
[1617706311890,2.90695,2118.2,2118.1,5.72]
[1617706312090,2.90695,2118.2,2117.9,5.61]
[1617706312407,2.90695,2118.2,2118.1,5.88]
[1617706312690,2.90695,2118.2,2118.0,5.83]
[1617706313090,2.90695,2118.2,2117.9,66.9254]
[1617706313290,2.90695,2118.2,2118.0,5.94]
[1617706316196,2.90695,2118.2,2118.0,6.8909]
[1617706316693,2.90695,2118.2,2118.0,5.94]
[1617706320395,2.90695,2118.2,2118.0,6.8807]
[1617706320595,2.90695,2118.2,2118.0,5.94]
[1617706320796,5.64265,2118.2,2117.4,5.78]
[1617706321119,5.64265,2118.2,2118.1,5.81]
[1617706321323,5.64265,2118.2,2117.3,67.8208]
[1617706321516,2.7357,2118.2,2117.5,5.75]
[1617706321695,2.7357,2118.2,2118.1,5.92]
[1617706321896,2.7357,2118.2,2117.0,3.49]
[1617706322096,32.7357,2118.2,2117.6,5.23]
[1617706322295,32.7357,2118.2,2118.1,5.76]
[1617706322517,32.7357,2118.2,2116.9,16.34935]
[1617706322518,32.7357,2118.2,2117.1,5.66]
[1617706322798,32.7357,2118.2,2118.1,5.71]
[1617706323296,32.7357,2118.2,2117.8,0.08]
[1617706323496,32.7357,2118.2,2118.1,5.93]
[1617706323895,32.7357,2118.2,2117.3,5.93]
[1617706324243,32.7357,2118.2,2118.1,5.91]
[1617706324406,32.7357,2118.2,2117.4,5.78]
[1617706324898,32.7357,2118.2,2118.1,5.77]
[1617706325095,32.7357,2118.2,2117.4,5.66]
[1617706325295,32.7357,2118.2,2117.4,6.6025]
[1617706325506,32.7357,2118.2,2118.1,5.87]
[1617706325795,32.7357,2118.2,2118.1,0.9573]
[1617706325995,32.7357,2118.2,2118.1,6.9073]
[1617706326996,32.7357,2118.2,2118.1,5.95]